Cogmind - Beta 13 @@@ ROGUE MODE // 2024.03.31 @ 14:03:35 Player: CrimsonOccultist Result: Destroyed by Y-45 Defender with Beam Rifle Performance ------------- Evolutions (1) 500 Regions Visited (3) 600 Robots Destroyed (73) 365 Value Destroyed (1886) 1886 Prototype IDs (0) 0 Alien Tech Used (0) 0 Bonus (262) 262 TOTAL SCORE: 3613 Bonus ------- High Alert Combat Kills 262 Cogmind --------- Core Integrity 0/400 Matter 289/300 Energy 240/240 System Corruption 2% Temperature Cool (9) Movement Treading (240) Ox1 Location -9/Storage Parts ------- > --- POWER (1) -------- Nuclear Core > --- PROPULSION (2) --- Light Treads Improved Treads > --- UTILITY (4) ------ High-capacity Storage Unit Sensor Array Targeting Computer Targeting Computer > --- WEAPON (2) ------- Heavy Assault Rifle Heavy Assault Rifle > --- INVENTORY (20) --- Nuclear Core Light Treads Light Treads Improved Aluminum Leg Improved Aluminum Leg Targeting Computer Light Assault Rifle Light Assault Rifle Heavy Assault Rifle Heavy Assault Rifle Improved Assault Rifle Datajack Peak State ------------ > --- POWER ------------ Nuclear Core > --- PROPULSION ------- Light Treads Improved Treads > --- UTILITY ---------- High-capacity Storage Unit Sensor Array Targeting Computer Targeting Computer > --- WEAPON ----------- Heavy Assault Rifle Heavy Assault Rifle > --- INVENTORY -------- Nuclear Core Light Treads Light Treads Improved Aluminum Leg Improved Aluminum Leg Targeting Computer Light Assault Rifle Light Assault Rifle Heavy Assault Rifle Heavy Assault Rifle Improved Assault Rifle Datajack [Rating: 16] Favorites ----------- Power Nuclear Core Engine Ion Engine Power Core Nuclear Core Propulsion Light Treads Treads Light Treads Leg Improved Aluminum Leg Wheel Wheel Utility Targeting Computer Device Seismic Detector Storage Large Storage Unit Processor Targeting Computer Weapon Light Assault Rifle Energy Gun EM Shotgun Ballistic Gun Light Assault Rifle Ballistic Cannon Light Cannon Build | -11 -10 -9 -9 ------- Run | Yrd Mat Mat Sto Slots Evolved 2 | . . 2 . Power . | . . . . Propulsion . | . . . . Utility 2 | . . 2 . Weapon . | . . . . Parts Attached 68 | 5 22 34 7 Power 11 | 1 4 5 1 Engine 6 | 1 2 3 . Core 5 | . 2 2 1 Reactor . | . . . . Propulsion 24 | 2 7 12 3 Treads 10 | . . 7 3 Leg 7 | . 3 4 . Wheel 7 | 2 4 1 . Hover . | . . . . Flight . | . . . . Utility 12 | . 6 5 1 Device 6 | . 4 1 1 Storage 2 | . . 2 . Processor 4 | . 2 2 . Hackware . | . . . . Protection . | . . . . Artifact . | . . . . Weapon 21 | 2 5 12 2 Energy Gun 1 | . . 1 . Energy Cannon . | . . . . Ballistic Gun 16 | 2 4 8 2 Ballistic Cannon 4 | . 1 3 . Launcher . | . . . . Special Weapon . | . . . . Impact Weapon . | . . . . Slashing Weapon . | . . . . Piercing Weapon . | . . . . Special Melee Weapon . | . . . . Unidentified Prototypes . | . . . . Parts Lost 14 | . 3 11 . Power 3 | . 1 2 . Propulsion 6 | . 1 5 . Utility 1 | . . 1 . Weapon 4 | . 1 3 . Highest Loss Streak 3 | . 2 3 . To Critical Strikes . | . . . . Average Slot Usage (%) 95 | . 97 93 100 Engine 3 | . 6 2 . Core 8 | . 7 8 11 Treads 8 | . . 11 17 Leg 7 | . 10 5 4 Wheel 8 | . 17 3 . Device 11 | . 13 9 11 Storage 7 | . . 10 11 Processor 17 | . 13 19 22 Ballistic Gun 18 | . 21 16 22 Ballistic Cannon 4 | . 5 4 . Naked Turns . | . . . . Heaviest Build 54 | 6 10 49 54 Greatest Support 43 | 20 26 40 43 Greatest Overweight (x) 9 | . 1 9 1 Average Overweight (x) . | . . . 1 Largest Inventory Capacity 20 | 5 5 20 20 Average Capacity 12 | 5 5 15 20 Most Carried 14 | 5 5 14 12 Average Carried 7 | 2 4 8 10 Final Capacity 20 | 5 5 20 20 Final Carried 12 | 4 5 10 12 Class Distribution -------------------- 62% | Mutant 37% | Scavenger-Mutant Dominant Class ---------------- Mutant | -10/Materials Scavenger-Mutant | -9/Materials Mutant | -9/Storage Resources | -11 -10 -9 -9 ----------- Run | Yrd Mat Mat Sto Matter Collected 1535 | 250 334 832 119 Remotely . | . . . . Salvage Created 2466 | 42 422 1768 234 Parts 179 | 2 32 131 14 Haulers Intercepted 1 | . . 1 . Recyclers Shooed . | . . . . Parts Field Recycled . | . . . . Retrieved Matter . | . . . . Parts Self-Destructed . | . . . . Prevented . | . . . . Kills | -11 -10 -9 -9 ------- Run | Yrd Mat Mat Sto Combat Hostiles Destroyed 63 | 1 12 47 3 Guns 51 | 1 12 35 3 Cannons 12 | . . 12 . Classes Destroyed 8 | 1 2 4 1 Worker 2 | . . 2 . Hauler 1 | . . 1 . Recycler 1 | . . . 1 Watcher 7 | . 2 5 . Swarmer 21 | . 6 15 . Grunt 30 | 1 6 21 2 Duelist 1 | . . 1 . Sentry 11 | . . 10 1 Best Kill Streak 9 | 1 3 9 3 Combat Bots Only 8 | 1 3 8 2 Max Kills in Single Turn 2 | 1 1 2 1 Gunslinging . | . . . . Exploded . | . . . . Melee . | . . . . Uniques/NPCs Destroyed . | . . . . Combat | -11 -10 -9 -9 -------- Run | Yrd Mat Mat Sto Hostile Shots Fired 331 | 2 75 237 17 Missed 74 | 1 13 56 4 Damage Taken 2930 | 10 575 2130 215 Core 541 | . 132 332 77 Absorbed by Shields . | . . . . Regen/Repaired (Parts) 92 | . 31 15 46 Core Remaining (%) 73 | 100 47 . . Volleys Fired 223 | 2 50 160 11 Largest 2 | 2 2 2 2 Hottest 65 | 40 55 65 46 Shots Fired 434 | 4 98 310 22 Gun 401 | 4 97 278 22 Cannon 33 | . 1 32 . Launcher . | . . . . Special . | . . . . Kinetic 416 | 4 98 292 22 Thermal . | . . . . Explosive . | . . . . Electromagnetic 18 | . . 18 . Robot Hit Streak 25 | 3 13 21 25 Robot Miss Streak 4 | . 4 4 1 Penetration Max . | . . . . Secondary Targets 4 | . 2 2 . Max Gunslinging Chain 1 | . 1 1 . Shots Hit Robots 301 | 3 55 223 20 Core Hits 142 | 2 27 105 8 Critical Kills 1 | . . 1 . Critical Parts Destroyed . | . . . . Critical Strikes 4 | . . 4 . Destroy 1 | . . 1 . Blast 3 | . . 3 . Melee Attacks . | . . . . Impact . | . . . . Slashing . | . . . . Piercing . | . . . . Sneak Attacks . | . . . . Combat Hostiles . | . . . . Follow-up Attacks . | . . . . Damage Inflicted 3434 | 33 473 2668 260 Guns 2886 | 33 473 2120 260 Cannons 414 | . . 414 . Explosions 109 | . . 109 . Melee . | . . . . Ramming 25 | . . 25 . Kinetic 3064 | 33 473 2298 260 Thermal 109 | . . 109 . Explosive . | . . . . Electromagnetic 236 | . . 236 . Impact . | . . . . Slashing . | . . . . Piercing . | . . . . Highest Corruption 2 | . . 1 2 Average Corruption 1 | . . 1 1 Corruption Purged . | . . . . Corruption Blocked . | . . . . Effects 20 | . . 15 5 Message Errors 5 | . . 2 3 Matter Fused 4 | . . 3 1 Heat Flow Errors 2 | . . 2 . Energy Discharges 2 | . . 2 . Parts Fused 2 | . . 2 . Data Loss (minor) 2 | . . 2 . Misfires 2 | . . 2 . Alerts 1 | . . . 1 Overload Shots . | . . . . Overflow Damage 12 | . . 12 . Projectiles . | . . . . Explosions 12 | . . 12 . Melee . | . . . . Knockbacks 2 | . . 2 . Impact 1 | . . 1 . Kinetic 1 | . . 1 . Secondary . | . . . . Self-Inflicted Damage . | . . . . Shots . | . . . . Rammed 3 | . . 3 . Targets Rammed 4 | . . 4 . Kicked . | . . . . Crushed 1 | . . 1 . Highest Temperature 194 | 6 18 194 32 Average Temperature 19 | 6 9 21 8 Received Heat Transfer 1095 | 6 159 819 111 Siege Activations . | . . . . Robots Corrupted . | . . . . Combat Hostiles . | . . . . Parts Fried . | . . . . Impact Corruptions . | . . . . Robots Melted . | . . . . Combat Hostiles . | . . . . Parts Melted . | . . . . Heat Transferred 200 | . . 200 . Parts Sabotaged . | . . . . Parts Stolen . | . . . . Parts Stripped . | . . . . Power Chain Reactions 2 | . . 2 . Alert | -11 -10 -9 -9 ------- Run | Yrd Mat Mat Sto Peak Influence 826 | 20 192 826 426 Initial 321 | . 13 . 321 Average 322 | 3 73 479 383 Maximum Alert Level 3 | . . 3 2 Low Security (%) 44 | 100 100 15 . Level 1 19 | . . 24 60 Level 2 25 | . . 39 39 Level 3 11 | . . 20 . Level 4 . | . . . . Level 5 . | . . . . High Security . | . . . . Max Security . | . . . . Squads Dispatched 12 | . 2 10 . Investigation 7 | . 1 6 . Extermination . | . . . . Reinforcement 4 | . 1 3 . Assault 1 | . . 1 . Garrison . | . . . . Intercept . | . . . . Searches Triggered . | . . . . Construction Impeded 1 | . . 1 . Haulers Reinforced . | . . . . Active Scanning Responses . | . . . . Cargo Convoy Interrupts . | . . . . Stealth | -11 -10 -9 -9 --------- Run | Yrd Mat Mat Sto Distress Signals 6 | . 2 4 . Communications Jammed . | . . . . Distress Signals . | . . . . Times Spotted 94 | 1 18 71 4 Peak Tracking Total 7 | 1 4 7 2 Tactical Retreats 5 | . 1 4 . Traps | -11 -10 -9 -9 ------- Run | Yrd Mat Mat Sto Traps Triggered 8 | . 4 3 1 Indirectly . | . . . . Trap Hack Attempts . | . . . . Triggered . | . . . . Disarmed 8 | . . . 8 Reprogrammed . | . . . . Reused . | . . . . Traps Extracted . | . . . . Installed . | . . . . Triggered . | . . . . Machines | -11 -10 -9 -9 ---------- Run | Yrd Mat Mat Sto Machines Disabled 1 | . . 1 . Max in Single Turn 1 | . . 1 . Machines Repaired . | . . . . Machines Dismantled . | . . . . Machines Sabotaged . | . . . . Overloaded Fab Kills . | . . . . Hacking | -11 -10 -9 -9 --------- Run | Yrd Mat Mat Sto Machines Accessed 16 | . 7 5 4 Terminals 10 | . 4 3 3 Fabricators . | . . . . Repair Stations 3 | . 1 1 1 Recycling Units 3 | . 2 1 . Scanalyzers . | . . . . Garrison Access . | . . . . Total Hacks 43 | . 18 13 12 Successful 26 | . 10 8 8 Failed 17 | . 8 5 4 Catastrophic 2 | . 2 . . Database Lockouts . | . . . . Manual . | . . . . Terminals 29 | . 10 9 10 Fabricators . | . . . . Repair Stations 10 | . 5 3 2 Recycling Units 4 | . 3 1 . Scanalyzers . | . . . . Garrison Access . | . . . . Terminal Hacks 13 | . 3 4 6 Record 5 | . 2 2 1 Part Schematic 1 | . . . 1 Alert Level 4 | . 1 2 1 Locate Traps 1 | . . . 1 Disarm Traps 2 | . . . 2 Fabricator Hacks . | . . . . Repair Station Hacks 9 | . 4 3 2 Scan Component 6 | . 3 2 1 Repair 3 | . 1 1 1 Recycling Unit Hacks 4 | . 3 1 . Process 1 | . 1 . . Report Inventory 3 | . 2 1 . Scanalyzer . | . . . . Garrison Access Hacks . | . . . . Unauthorized Hacks . | . . . . Terminals . | . . . . Fabricators . | . . . . Repair Stations . | . . . . Recycling Units . | . . . . Scanalyzers . | . . . . Garrison Access . | . . . . Data Cores Recovered . | . . . . Used . | . . . . Hacking Detections 13 | . 6 4 3 Full Trace Events 7 | . 3 3 1 Feedback Events 1 | . . 1 . Corruption 1 | . . 1 . Feedback Blocked . | . . . . Robot Schematics Acquired . | . . . . Robots Built . | . . . . Authchips . | . . . . Time . | . . . . Total Robot Build Rating . | . . . . Part Schematics Acquired 1 | . . . 1 Parts Built . | . . . . Authchips . | . . . . Time . | . . . . Total Part Build Rating . | . . . . Parts Repaired 3 | . 1 1 1 Time 88 | . 36 26 26 Parts Recycled . | . . . . Recycled Matter 42 | . 42 . . Retrieved Matter . | . . . . Retrieved Components . | . . . . Parts Scanalyzed . | . . . . Part Schematics Acquired . | . . . . Parts Damaged . | . . . . Bothacking | -11 -10 -9 -9 ------------ Run | Yrd Mat Mat Sto Used RIF Installer . | . . . . Robots Hacked . | . . . . Non-combat . | . . . . Combat . | . . . . Robot Hacks Applied . | . . . . Relay Couplers Released . | . . . . Fabnet Peak Effective % . | . . . . Robots Rewired . | . . . . Allies Hacked . | . . . . Hacks Repelled . | . . . . Allies | -11 -10 -9 -9 -------- Run | Yrd Mat Mat Sto Total Allies . | . . . . Largest Group . | . . . . Highest-Rated Group . | . . . . Highest-Rated Ally . | . . . . Total Orders . | . . . . Ally Attacks . | . . . . Total Damage . | . . . . Kills . | . . . . Allies Corrupted . | . . . . Allies Melted . | . . . . Intel | -11 -10 -9 -9 ------- Run | Yrd Mat Mat Sto Robot Analysis Total . | . . . . Derelict Logs Recovered . | . . . . Drone Launches . | . . . . Drone Recoveries . | . . . . Exploration | -11 -10 -9 -9 ------------- Run | Yrd Mat Mat Sto Turns Passed 3835 | 65 1312 2066 392 Spaces Moved 2132 | 61 1050 887 134 Core 24 | 22 1 1 . Treads 624 | . . 522 102 Legs 521 | . 282 207 32 Wheels 963 | 39 767 157 . Hover . | . . . . Flight . | . . . . Fastest Speed 50 | 50 80 90 190 Average Speed 129 | 69 97 155 228 Slowest Speed 500 | 80 120 500 240 Overloaded Moves . | . . . . Propulsion Burnouts . | . . . . Robots Hopped . | . . . . Cave-ins Triggered . | . . . . Exploration Rate (%) 49 | 5 96 70 26 Regions Visited 3 Branch Regions 1 Pre-discovered Areas . | . . . . Known Exits Taken 2 | . 1 1 . Unknown Exits Taken 1 | 1 . . . Scrap Searched . | . . . . Spaces Dug . | . . . . Terrain Destroyed 9 | . . 9 . Melee . | . . . . Projectile . | . . . . AOE 9 | . . 9 . Terrain Rammed . | . . . . Walls Destroyed . | . . . . Machines Disabled . | . . . . Actions | -11 -10 -9 -9 --------- Run | Yrd Mat Mat Sto Total 2835 | 79 1260 1298 198 Wait 316 | 3 112 160 41 Move 2129 | 60 1049 886 134 Hop . | . . . . Pick Up 58 | 9 15 30 4 Fast Attach 15 | . 8 7 . Attach 24 | 5 8 10 1 Detach 2 | . 1 1 . Swap 29 | . 6 17 6 Drop 35 | . 11 23 1 Fire 223 | 2 50 160 11 Melee . | . . . . Ram . | . . . . Kick . | . . . . Crush 4 | . . 4 . Escape Stasis . | . . . . Rewire . | . . . . Trap . | . . . . Miscellaneous . | . . . . Route ------- -11/Scrapyard -10/Materials (discovered 3 exits: *Mat x3) -9/Materials (discovered 3 exits: [*Mat] / *Min / *Sto) -9/Storage History --------- Turn | Location | Event 2 | -11/Scrapyard | Met Revision 17 50 | -11/Scrapyard | Discovered new exit (range 8) 66 | -11/Scrapyard | Entered Materials 222 | -10/Materials | Discovered new exit (range 16) 546 | -10/Materials | Discovered new exit (range 16) 564 | -10/Materials | Identified exit to Materials 682 | -10/Materials | Core integrity fell below 50% 724 | -10/Materials | Build established: Mutant 727 | -10/Materials | Discovered exit to Materials (range 14) 1117 | -10/Materials | Repaired Broken Lgt. Assault Rifle 1378 | -10/Materials | Entered another Materials area 1378 | -9/Materials | Evolved 2 slots: Utility x2 1783 | -9/Materials | Discovered new exit (range 15) 2004 | -9/Materials | Identified exit to Mines 2102 | -9/Materials | Lost 3 parts (1p1n1w) 2237 | -9/Materials | Repaired Seismic Detector 2253 | -9/Materials | Discovered new exit (range 10) 2370 | -9/Materials | Destroyed 8 combat bots 2381 | -9/Materials | Core integrity fell below 50% 2404 | -9/Materials | Build established: Scavenger-Mutant 2917 | -9/Materials | Discovered new exit (range 16) 3079 | -9/Materials | Identified exit to Storage 3248 | -9/Materials | Lost 3 parts (2n1u) 3352 | -9/Materials | Core integrity fell below 20% 3378 | -9/Materials | First assault squad dispatched 3444 | -9/Materials | Entered Storage 3503 | -9/Storage | Build established: Mutant 3661 | -9/Storage | Repaired Lgt. Assault Rifle 3836 | -9/Storage | Destroyed by Y-45 Defender with Beam Rifle Last Messages --------------- Acquired Lgt. Assault Rifle. G-47 Trooper destroyed. R-06 Scavenger collects Imp. Heat Sink. R-06 Scavenger collects Particle Gun. G-34 Mercenary destroyed. R-06 Scavenger destroyed. Acquired 66 matter. U-05 Engineer builds a Door. Acquired Hvy. Assault Rifle. Connecting with Terminal... >>Alert(Check) Current Alert Level: 2-C System corrupted: IFF burst signal emitted. System corrupted: Matter fused (-5). [Achievement: First Step to Greatness] Important note for Steam players: Cogmind player global achievement rates displayed by Steam are all significantly underreported, in some cases by a huge margin, due to how they are calculated by Valve. Map ----- +----------------------------------------------------+ | ?????????? ?????# + #???? | | ?????????? ???# [ # #???? | | ?????????? ""???# //# #???? | | ?????????? ""???# /!# #???? | | ?????????? ""???# # #???? | | ?????????? ???##T## ## #???? | | ??????????#/############ #???? | | ??????????# ## """ # #???? | | ??????????# ## "R" # #???? | | ??????????# ## " " # #???? | | ??????????# ##= + #???? | | ??????????#*##!!""""" # #???? | | ??????????#[%+%*""""" # #???? | | ??????????#=##= """"" # #???? | | ??????????# ##[ # #???? | | ????# ????# #####+###### #???? | | ????# ""??# #???# #????# #???? | | ????# """ # ##### #????# #???? | | ????# """ + #????# #???? | | ????# # #######????# #???? | | ????####### ###????????# #???? | | ????????# ########## #???? | | ????????# ? #???? | | ????????# T #???? | | ????????# Y #???? | | ????????# ####+######@ #???? | | ????????####### # #???? | | ??????????????# """ + #???? | | ??????????????# "?"""" ##+#???? | | ??????????????# "????" #??????? | | ??????????????# "????" #??????? | | ??????????????# """"?" #??????? | | ??????????????# """ #??????? | | ??????????????# #??????? | | ??????????????###########??????? | | ???????????????????????????????? | | ???????????????????????????????? | | ???????????????????????????????? | | ???????????????????????????????? | | ???????????????????????????????? | | ???????????????????????????????? | | ???????????????????????????????? | | ???????????????????????????????? | | ???????????????????????????????? | | ???????????????????????????????? | | ???????????????????????????????? | | ???????????????????????????????? | | ???????????????????????????????? | | ???????????????????????????????? | | ???????????????????????????????? | +----------------------------------------------------+ Best States ------------- Heat Dissipation 28 Energy Generation 14 Energy Capacity 265 Matter Stores 300 Matter Capacity 300 Sight Range 16 Robot Scan Range 14 Terrain Scan Density 10 Evasion (%) 55 Targeting Accuracy 10 Recoil Reduction 2 Item Schematics ----------------- Autogun | -9/Storage | Hacked Robot Schematics ------------------ None Fabricated ------------ Nothing Alien Tech Used ----------------- None Achievements -------------- First Step to Greatness Part-time Mechanic Significant Disruption Challenges ------------ None Game ------ Seed MetafiberMetafieldRigger Manual? 0 Play Time 01:02:07 Cumulative 1.4 hours Start 2024.03.31 @ 12:59:49 End 2024.03.31 @ 14:03:35 Sessions 3 Manual Loads 0 Difficulty Rogue Special Mode None Game No. 3 Rogue 3 Adventurer 0 Explorer 0 Win Type - Total 0 Types 0/0/0/0/0/0/0/0/0 Lore% 2 Gallery% 4 Achievement% 5 Wizard Run 0 Options --------- Layout 2 ASCII 0 Keyboard 0 Movement Numpad Keybinds 0 Fullscreen 1 Font 24/Smallcaps Map View 50x44 Zoom Use 0% Tactical HUD 0 Map Filters NONE Filters NONE Steam 1 RUN: b1560d59-9c93-4362-a937-414e7a87d784